fUST/lending_fUST_20240713
["ID","MTS","AMOUNT","RATE_DAILY","PERIOD"]
[331943734,1720882242570,-510.29201685,0.00024931,2]
[331943735,1720882242580,-500.0,0.00024931,2]
[331943736,1720882242589,-500.0,0.00024931,2]
[331943737,1720882242599,-500.0,0.00024931,2]
[331943738,1720882242608,-500.0,0.00024931,2]
[331943739,1720882242617,-160.429889,0.00024931,7]
[331943740,1720882242626,-500.0,0.00024931,2]
[331943741,1720882242641,-632.9,0.00024931,2]
[331943742,1720882242657,-500.0,0.00024931,2]
[331943743,1720882242667,-500.0,0.00024931,2]
[331943744,1720882242677,-500.0,0.00024931,2]
[331943745,1720882242687,-500.0,0.00024931,2]
[331943746,1720882242697,-500.0,0.00024931,2]
[331943747,1720882242707,-500.0,0.00024931,2]
[331943748,1720882242717,-500.0,0.00024931,2]
[331943749,1720882242727,-500.0,0.00024931,2]
[331943750,1720882242736,-500.0,0.00024931,2]
[331943751,1720882242748,-500.0,0.00024931,2]
[331943752,1720882242758,-263.772153,0.00024931,7]
[331943753,1720882242769,-500.0,0.00024931,2]
[331943754,1720882242779,-4166.66,0.00024931,2]
[331943755,1720882242789,-500.0,0.00024931,2]
[331943756,1720882242800,-500.0,0.00024931,2]
[331943757,1720882242811,-500.0,0.00024931,2]
[331943758,1720882242823,-500.0,0.00024931,2]
[331943759,1720882242833,-381.1800309,0.00024931,2]
[331943760,1720882242845,-350.0,0.00024931,7]
[331943761,1720882242857,-500.0,0.00024931,2]
[331943762,1720882242866,-210.50193047,0.00024931,2]
[331943763,1720882242876,-350.0,0.00024931,7]
[331943764,1720882242886,-500.0,0.00024931,2]
[331943765,1720882242895,-500.0,0.00024931,2]
[331943766,1720882242904,-500.0,0.00024931,2]
[331943767,1720882242914,-500.0,0.00024931,2]
[331943768,1720882242924,-151.0,0.00024931,7]
[331943769,1720882242934,-500.0,0.00024931,2]
[331943770,1720882242943,-500.0,0.00024931,2]
[331943771,1720882242953,-500.0,0.00024931,2]
[331943772,1720882242963,-500.0,0.00024931,2]
[331943773,1720882242972,-500.0,0.00024931,2]
[331943774,1720882242982,-500.0,0.00024931,2]
[331943775,1720882242992,-500.0,0.00024931,2]
[331943777,1720882243002,-500.0,0.00024931,2]
[331943779,1720882243012,-219.43456981,0.00024931,2]
[331943780,1720882243024,-500.0,0.00024931,2]
[331943781,1720882243036,-500.0,0.00024931,2]
[331943782,1720882243045,-500.0,0.00024931,2]
[331943783,1720882243056,-500.0,0.00024931,2]
[331943784,1720882243067,-500.0,0.00024931,2]
[331943785,1720882243077,-500.0,0.00024931,2]
[331943786,1720882243087,-151.0,0.00024931,7]
[331943787,1720882243098,-500.0,0.00024931,2]
[331943788,1720882243108,-500.0,0.00024931,2]
[331943789,1720882243118,-500.0,0.00024931,2]
[331943790,1720882243128,-500.0,0.00024931,2]
[331943791,1720882243137,-500.0,0.00024931,2]
[331943792,1720882243147,-500.0,0.00024931,2]
[331943794,1720882243157,-7809.43,0.00024931,2]
[331943795,1720882243166,-500.0,0.00024931,2]
[331943796,1720882243177,-500.0,0.00024931,2]
[331943797,1720882243187,-500.0,0.00024931,2]
[331943798,1720882243196,-500.0,0.00024931,2]
[331943799,1720882243205,-500.0,0.00024931,2]
[331943800,1720882243216,-500.0,0.00024931,2]
[331943801,1720882243225,-500.0,0.00024931,2]
[331943802,1720882243235,-500.0,0.00024931,2]
[331943803,1720882243247,-208.75112797,0.00024931,2]
[331943804,1720882243257,-500.0,0.00024931,2]
[331943805,1720882243266,-151.0,0.00024931,7]
[331943806,1720882243276,-1310.33,0.00024931,2]
[331943807,1720882243285,-500.0,0.00024931,2]
[331943808,1720882243295,-500.0,0.00024931,2]
[331943809,1720882243305,-500.0,0.00024931,2]
[331943810,1720882243315,-500.0,0.00024931,2]
[331943811,1720882243324,-500.0,0.00024931,2]
[331943812,1720882243334,-500.0,0.00024931,2]
[331943813,1720882243343,-500.0,0.00024931,2]
[331943815,1720882243353,-500.0,0.00024931,2]
[331943817,1720882243364,-500.0,0.00024931,2]
[331943818,1720882243375,-500.0,0.00024931,2]
[331943819,1720882243385,-500.0,0.00024931,2]
[331943820,1720882243398,-500.0,0.00024931,2]
[331943821,1720882243410,-500.0,0.00024931,2]
[331943822,1720882243421,-500.0,0.00024931,2]
[331943823,1720882243431,-500.0,0.00024931,2]
[331943824,1720882243441,-500.0,0.00024931,2]
[331943825,1720882243451,-500.0,0.00024931,2]
[331943826,1720882243461,-522.99160165,0.00024931,2]
[331943827,1720882243471,-500.0,0.00024931,2]
[331943828,1720882243482,-548.39295008,0.00024931,2]
[331943829,1720882243493,-500.0,0.00024931,2]
[331943830,1720882243503,-500.0,0.00024931,2]
[331943831,1720882243512,-500.0,0.00024931,2]
[331943832,1720882243524,-500.0,0.00024931,2]
[331943833,1720882243534,-7637.71638996,0.00024968,2]
[331943834,1720882243544,-187.0,0.00025,2]
[331943835,1720882243554,-7637.71638996,0.00025105,2]
[331943836,1720882243564,-356.1653261,0.00025127,2]
[331943837,1720882243573,-500.0,0.00025193,2]
[331943838,1720882243583,-12567.1887121,0.00025194,3]
[331943839,1720882243592,-12567.1887121,0.00025195,3]
[331943840,1720882243603,-500.0,0.00025203,2]
[331943841,1720882243612,-30000.0,0.00025204,2]
[331943842,1720882243622,-350.0,0.00025204,7]
[331943843,1720882243631,-350.0,0.00025204,7]
[331943844,1720882243640,-211.634667,0.00025204,7]
[331943845,1720882243651,-433.74,0.00025204,2]
[331943846,1720882243660,-500.0,0.00025205,2]
[331943847,1720882243670,-500.0,0.00025205,2]
[331943848,1720882243679,-500.0,0.00025205,2]
[331943849,1720882243688,-290.03134183,0.00025205,2]
[331943850,1720882243698,-158.68,0.00025205,2]
[331943851,1720882243707,-158.44052637,0.00025205,2]
[331943852,1720882243717,-601.25,0.00025205,2]
[331943853,1720882243727,-500.0,0.00025205,2]
[331943854,1720882243736,-500.0,0.00025205,2]
[331943855,1720882243748,-151.0,0.00025205,7]
[331943856,1720882243757,-500.0,0.00025205,2]
[331943857,1720882243767,-500.0,0.00025205,2]
[331943858,1720882243778,-1000.0,0.00025205,5]
[331943859,1720882243787,-500.0,0.00025205,2]
[331943860,1720882243796,-500.0,0.00025205,2]
[331943861,1720882243806,-500.0,0.00025205,2]
[331943862,1720882243816,-395.53496956,0.00025205,2]
[331943863,1720882243825,-500.0,0.00025205,2]
[331943864,1720882243835,-500.0,0.00025205,2]
[331943865,1720882243844,-500.0,0.00025205,2]
[331943866,1720882243854,-420.85678218,0.00025205,2]
[331943867,1720882243863,-411.36,0.00025205,2]
[331943868,1720882243873,-450.76278161,0.00025205,2]
[331943869,1720882243882,-500.0,0.00025205,2]
[331943870,1720882243892,-4166.66,0.00025205,2]
[331943871,1720882243901,-500.0,0.00025205,2]
[331943872,1720882243910,-500.0,0.00025205,2]
[331943873,1720882243920,-500.0,0.00025205,2]
[331943874,1720882243930,-500.0,0.00025205,2]
[331943875,1720882243939,-561.53,0.00025205,2]
[331943876,1720882243949,-500.0,0.00025205,2]
[331943877,1720882243958,-500.0,0.00025205,2]
[331943878,1720882243967,-500.0,0.00025205,2]
[331943879,1720882243977,-500.0,0.00025205,2]
[331943880,1720882243987,-500.0,0.00025205,2]
[331943881,1720882243999,-500.0,0.00025205,2]
[331943882,1720882244009,-500.0,0.00025205,2]
[331943883,1720882244019,-500.0,0.00025205,2]
[331943884,1720882244031,-428.7529884,0.00025205,2]
[331943885,1720882244041,-500.0,0.00025205,2]
[331943886,1720882244050,-500.0,0.00025205,2]
[331943887,1720882244060,-500.0,0.00025205,2]
[331943888,1720882244069,-500.0,0.00025205,2]
[331943889,1720882244079,-500.0,0.00025205,2]
[331943890,1720882244089,-7809.43,0.00025205,2]
[331943891,1720882244098,-500.0,0.00025205,2]
[331943892,1720882244111,-500.0,0.00025205,2]
[331943893,1720882244121,-500.0,0.00025205,2]
[331943894,1720882244131,-500.0,0.00025205,2]
[331943895,1720882244140,-500.0,0.00025205,2]
[331943896,1720882244149,-500.0,0.00025205,2]
[331943897,1720882244159,-1310.33,0.00025205,2]
[331943898,1720882244168,-258.88605255,0.00025205,2]
[331943899,1720882244178,-500.0,0.00025205,2]
[331943900,1720882244189,-500.0,0.00025205,2]
[331943901,1720882244199,-500.0,0.00025205,2]
[331943902,1720882244208,-500.0,0.00025205,2]
[331943903,1720882244219,-500.0,0.00025205,2]
[331943904,1720882244228,-531.76915667,0.00025205,2]
[331943905,1720882244237,-500.0,0.00025205,2]
[331943906,1720882244249,-187.00366007,0.00025205,2]
[331943907,1720882244258,-500.0,0.00025205,2]
[331943908,1720882244268,-339.71798854,0.00025205,2]
[331943909,1720882244278,-500.0,0.00025205,2]
[331943910,1720882244287,-500.0,0.00025205,2]
[331943911,1720882244297,-500.0,0.00025205,2]
[331943912,1720882244306,-500.0,0.00025205,2]
[331943913,1720882244316,-500.0,0.00025205,2]
[331943914,1720882244326,-356.1653261,0.00025233,2]
[331943915,1720882244335,-165.56593278,0.0002525,2]
[331943916,1720882244345,-151.0,0.00025469,2]
[331943917,1720882244355,-9308.82635334,0.00025479,5]
[331943918,1720882244365,-507.98739794,0.00025479,2]
[331943919,1720882244374,-500.0,0.00025479,2]
[331943920,1720882244384,-198.03,0.00025479,2]
[331943921,1720882244395,-617.07619474,0.00025479,2]
[331943922,1720882244405,-1000.0,0.00025479,5]
[331943923,1720882244414,-500.0,0.00025479,2]
[331943924,1720882244424,-500.0,0.00025479,2]
[331943925,1720882244433,-500.0,0.00025479,2]
[331943926,1720882244444,-4166.66,0.00025479,2]
[331943927,1720882244454,-409.24956619,0.00025479,2]
[331943928,1720882244464,-500.0,0.00025479,2]
[331943929,1720882244474,-500.0,0.00025479,2]
[331943930,1720882244483,-500.0,0.00025479,2]
[331943931,1720882244493,-153.32,0.00025479,2]
[331943932,1720882244502,-589.13,0.00025479,2]
[331943933,1720882244512,-500.0,0.00025479,2]
[331943934,1720882244521,-500.0,0.00025479,2]
[331943935,1720882244531,-607.70050573,0.00025479,2]
[331943936,1720882244541,-500.0,0.00025479,2]
[331943937,1720882244550,-562.51004883,0.00025479,2]
[331943938,1720882244560,-500.0,0.00025479,2]
[331943939,1720882244570,-308.83,0.00025479,2]
[331943940,1720882244579,-7809.43,0.00025479,2]
[331943941,1720882244589,-500.0,0.00025479,2]
[331943942,1720882244599,-334.77180992,0.00025479,2]
[331943943,1720882244608,-161.99303915,0.00025479,2]
[331943945,1720882245783,-338.00696085,0.00025479,2]
[331943946,1720882245793,-500.0,0.00025479,2]
[331943947,1720882245803,-917.76303915,0.00025479,2]
[331943948,1720882245819,-392.56696085,0.00025479,2]
[331943949,1720882245828,-500.0,0.00025479,2]
[331943950,1720882245838,-116.72240122,0.00025479,2]
[331943951,1720882245951,-547.47452138,0.00019703,2]
[331943952,1720882245961,-383.27759878,0.00025479,2]
[331943953,1720882245971,-500.0,0.00025479,2]
[331943954,1720882245980,-523.45628204,0.00025479,2]
[331943955,1720882245993,-366.37949132,0.00025479,2]
[331943956,1720882246004,-500.0,0.00025479,2]
[331943957,1720882246014,-500.0,0.00025479,2]
[331943958,1720882246026,-500.0,0.00025479,2]
[331943959,1720882246038,-500.0,0.00025479,2]
[331943960,1720882246048,-992.63271205,0.00025501,2]
[331943962,1720882246059,-633.28423869,0.00025669,2]
[331943964,1720882246070,-1496.835978,0.00025743,3]
[331943966,1720882246086,-11070.3527341,0.00025743,3]
[331943968,1720882246096,-151.0,0.00025753,7]
[331943970,1720882246107,-502.88,0.00025753,2]
[331943971,1720882246117,-764.10820365,0.00025753,5]
[331943974,1720882246126,-302.5,0.00025753,2]
[331943976,1720882246136,-500.0,0.00025753,2]
[331943978,1720882246145,-500.0,0.00025753,2]
[331943980,1720882246155,-4166.66,0.00025753,2]
[331943983,1720882246165,-350.0,0.00025753,7]
[331943986,1720882246174,-534.06,0.00025753,2]
[331943988,1720882246183,-350.0,0.00025753,7]
[331943990,1720882246192,-235.08,0.00025753,2]
[331943992,1720882246202,-500.0,0.00025753,2]
[331943994,1720882246212,-500.0,0.00025753,2]
[331943997,1720882246222,-500.0,0.00025753,2]
[331943999,1720882246231,-500.0,0.00025753,2]
[331944001,1720882246241,-7809.43,0.00025753,2]
[331944002,1720882246250,-500.0,0.00025753,2]
[331944003,1720882246259,-500.0,0.00025753,2]
[331944007,1720882246268,-1310.33,0.00025753,2]
[331944010,1720882246278,-516.12653375,0.00025753,2]
[331944014,1720882246287,-500.0,0.00025753,2]
[331944018,1720882246296,-500.0,0.00025753,2]
[331944021,1720882246307,-500.0,0.00025753,2]
[331944024,1720882246316,-500.0,0.00025753,2]
[331944027,1720882246325,-173.13312301,0.00025753,2]
[331944029,1720882246336,-500.0,0.00025753,2]
[331944032,1720882246346,-1106.379575,0.00025869,2]
[331944035,1720882246355,-152.20405271,0.00025951,2]
[331944038,1720882246364,-157.95591486,0.00025954,2]
[331944041,1720882246373,-159.57839054,0.00025956,2]
[331944044,1720882246383,-1577.95662,0.00025963,2]
[331944047,1720882246393,-500.0,0.00026027,2]
[331944049,1720882246403,-500.0,0.00026027,2]
[331944052,1720882246413,-1137.72501875,0.00026027,2]
[331944063,1720882246975,-2919.41769198,0.00026027,2]
[331944066,1720882247074,-109.51728927,0.00026027,2]
[331944067,1720882247084,-264.09,0.00026027,2]
[331944068,1720882247093,-461.76813888,0.00026027,2]
[331944069,1720882259612,373.97,0.00019,2]
[331944078,1720882485849,10618.87007952,0.00018899,2]
[331944080,1720882521476,3078.85157566,0.00018899,2]
[331944085,1720882540543,1106.379575,0.00018899,2]
[331944086,1720882550460,599.44172174,0.00018899,2]
[331944090,1720882600868,610.635225,0.00018899,2]
[331944096,1720882645787,1063.91111254,0.00018899,2]
[331944099,1720882718498,1500.0,0.00018899,2]
[331944101,1720882720158,-171.4420555,0.00027397,120]
[331944102,1720882720193,-58.5579445,0.00032,120]
[331944103,1720882725626,203.42857826,0.00018899,2]
[331944106,1720882744518,480.89692261,0.00018899,2]
[331944107,1720882744563,1106.379575,0.00018899,2]
[331944112,1720882804615,1039.93037644,0.0001,14]
[331944113,1720882808025,160.34782851,0.00018899,2]
[331944117,1720882834916,165.18087291,0.00018899,2]
[331944119,1720882841466,598.60216026,0.00018899,2]
[331944122,1720882857459,2125.60007203,0.00018899,2]
[331944123,1720882866359,790.65319772,0.00018899,2]
[331944124,1720882881853,574.24735706,0.00018899,2]
[331944126,1720882924505,1500.0,0.00018899,2]
[331944127,1720882930300,209.25073388,0.00018899,2]
[331944128,1720882942090,992.88413342,0.00018899,2]
[331944131,1720882955966,4711.13030053,0.00018899,2]
[331944136,1720882986568,615.27752407,0.00018899,2]
[331944137,1720883021475,777.12632108,0.00018899,2]
[331944146,1720883048509,480.89692261,0.00018899,2]
[331944147,1720883070640,219.17364494,0.00018899,2]
[331944148,1720883079116,368.51455861,0.00018899,2]
[331944150,1720883090279,532.67305812,0.00018899,2]
[331944151,1720883103360,790.1699062,0.00018899,2]
[331944152,1720883118530,1095.37861353,0.00018899,2]
[331944153,1720883134500,599.23183137,0.00018899,2]
[331944154,1720883137198,490.90477664,0.00018899,2]
[331944155,1720883137876,554.70249206,0.00018899,2]
[331944158,1720883147024,179.06142745,0.00018899,2]
[331944159,1720883150150,-322.7912065,0.00019165,2]
[331944160,1720883150170,-154.60575532,0.00019165,2]
[331944161,1720883150198,-154.60575532,0.00019165,2]
[331944162,1720883150226,-992.88413342,0.00019165,2]
[331944163,1720883150254,-258.6059092,0.00019165,2]
[331944164,1720883150278,-788.97831,0.00019294,2]
[331944165,1720883150303,-300.0,0.00019599,2]
[331944166,1720883150332,-253.62845807,0.000196,2]
[331944167,1720883150359,-395.3059992,0.0002,2]
[331944168,1720883150384,-300.0,0.00020067,2]
[331944169,1720883150413,-24900.0,0.00020068,2]
[331944170,1720883150438,-154.60575532,0.00020543,2]
[331944171,1720883150462,-154.59033561,0.00020545,2]
[331944172,1720883150489,-3000.0,0.00020931,2]
[331944173,1720883150514,-342.57269898,0.00020995,2]
[331944174,1720883150538,-166.37366798,0.00021095,2]
[331944175,1720883150562,-191.27347695,0.00021095,2]
[331944176,1720883150586,-154.99646309,0.00021095,2]
[331944177,1720883150611,-612.111179,0.00021096,2]
[331944178,1720883150636,-162.508196,0.00021103,2]
[331944179,1720883150659,-250.0,0.0002146,2]
[331944180,1720883150682,-420.0,0.00021559,2]
[331944181,1720883150706,-197.44371632,0.00021917,2]
[331944182,1720883150730,-201.12837956,0.00021917,2]
[331944183,1720883150755,-1450.26906671,0.00021917,2]
[331944184,1720883150780,-285.04237374,0.00021917,2]
[331944185,1720883150805,-154.60575532,0.00022397,2]
[331944186,1720883150828,-154.82205658,0.0002243,2]
[331944187,1720883150854,-276.47180796,0.0002243,2]
[331944188,1720883150881,-1258.57621938,0.00022907,2]
[331944189,1720883150907,-532.67305812,0.00022907,2]
[331944190,1720883150931,-20727.8833951,0.00022941,2]
[331944191,1720883150954,-1666.68225127,0.00023379,2]
[331944192,1720883150978,-295.0,0.00023715,2]
[331944193,1720883151002,-153.0,0.00023958,2]
[331944194,1720883151028,-153.0,0.00023958,2]
[331944195,1720883151054,-153.0,0.00023958,2]
[331944196,1720883151078,-153.0,0.00023958,2]
[331944197,1720883151102,-153.0,0.00023958,2]
[331944198,1720883151124,-153.0,0.00023958,2]
[331944199,1720883151150,-153.0,0.00023958,2]
[331944200,1720883151175,-153.0,0.00023958,2]
[331944201,1720883151199,-153.0,0.00023958,2]
[331944202,1720883151222,-153.0,0.00023958,2]
[331944203,1720883151245,-153.0,0.00023958,2]
[331944204,1720883151267,-153.0,0.00023958,2]
[331944205,1720883151289,-153.0,0.00023958,2]
[331944206,1720883151316,-153.0,0.00023958,2]
[331944207,1720883151342,-153.0,0.00023958,2]
[331944208,1720883151369,-153.0,0.00023958,2]
[331944209,1720883151395,-153.0,0.00023958,2]
[331944210,1720883151421,-153.0,0.00023958,2]
[331944211,1720883151443,-153.0,0.00023958,2]
[331944212,1720883151467,-153.0,0.00023958,2]
[331944213,1720883151491,-153.0,0.00023958,2]
[331944214,1720883151514,-153.0,0.00023958,2]
[331944215,1720883151538,-153.0,0.00023958,2]
[331944216,1720883151563,-153.0,0.00023958,2]
[331944217,1720883151586,-153.0,0.00023958,2]
[331944218,1720883151609,-153.0,0.00023958,2]
[331944219,1720883151765,-153.0,0.00023958,2]
[331944220,1720883151790,-153.0,0.00023958,2]
[331944221,1720883151813,-153.0,0.00023958,2]
[331944222,1720883151834,-153.0,0.00023978,2]
[331944223,1720883151856,-153.0,0.00023978,2]
[331944224,1720883151878,-153.0,0.00023978,2]
[331944225,1720883151899,-153.0,0.00023978,2]
[331944226,1720883151922,-153.0,0.00023978,2]
[331944227,1720883151944,-153.0,0.00023978,2]
[331944228,1720883151965,-153.0,0.00023978,2]
[331944229,1720883151988,-356.1653261,0.00024399,2]
[331944230,1720883152010,-3055.086556,0.00024557,2]
[331944231,1720883152033,-12527.31757626,0.00024647,3]
[331944234,1720883207749,24549.01898368,0.00018,2]
[331944235,1720883211723,191.27347695,0.00018899,2]
[331944241,1720883225121,-197.44371632,0.00021095,2]
[331944242,1720883225143,-1111.12150085,0.00022547,2]
[331944243,1720883225165,-300.0,0.00022906,2]
[331944244,1720883225187,-300.0,0.00022906,2]
[331944245,1720883225208,-327.59042206,0.00022907,2]
[331944246,1720883225230,-3529.11519136,0.00022907,2]
[331944247,1720883225250,-258.6059092,0.00022907,2]
[331944248,1720883225271,-925.4008455,0.00022973,2]
[331944249,1720883225293,-250.0,0.00023093,2]
[331944250,1720883225315,-153.0,0.00023926,2]
[331944251,1720883225340,-153.0,0.00023926,2]
[331944252,1720883225363,-153.0,0.00023926,2]
[331944253,1720883225384,-153.0,0.00023926,2]
[331944254,1720883225406,-153.0,0.00023926,2]
[331944255,1720883225428,-153.0,0.00023926,2]
[331944256,1720883225449,-153.0,0.00023926,2]
[331944257,1720883225472,-153.0,0.00023958,2]
[331944258,1720883225494,-153.0,0.00023958,2]
[331944259,1720883225516,-153.0,0.00023958,2]
[331944260,1720883225540,-11380.90056841,0.00024647,3]
[331944261,1720883228111,-2172.40610253,0.00024647,3]
[331944262,1720883228134,-170.11,0.00024647,3]
[331944263,1720883228156,-428.62808121,0.00024647,2]
[331944264,1720883228177,-510.37,0.00024647,3]
[331944265,1720883228198,-6871.28306613,0.00024647,2]
[331944266,1720883228218,-282.79938233,0.00024656,2]
[331944267,1720883228239,-500.0,0.00024656,2]
[331944268,1720883228259,-183.31020181,0.00024656,2]
[331944269,1720883228281,-500.0,0.00024656,2]
[331944270,1720883228303,-347.30875673,0.00024656,2]
[331944271,1720883228325,-500.0,0.00024656,2]
[331944272,1720883228350,-500.0,0.00024656,2]
[331944273,1720883228373,-500.0,0.00024656,2]
[331944274,1720883228396,-535.06754588,0.00024656,2]
[331944275,1720883228420,-500.0,0.00024656,2]
[331944276,1720883228440,-152.14005463,0.00024656,2]
[331944277,1720883228460,-205.40007086,0.00024657,2]
[331944278,1720883228480,-500.0,0.00024657,2]
[331944279,1720883228502,-500.0,0.00024657,2]
[331944280,1720883228523,-500.0,0.00024657,2]
[331944281,1720883228543,-500.0,0.00024657,2]
[331944282,1720883228562,-502.07504299,0.00024657,2]
[331944283,1720883228583,-502.50084884,0.00024657,2]
[331944284,1720883228603,-500.0,0.00024657,2]
[331944285,1720883228624,-500.0,0.00024657,2]
[331944286,1720883228644,-500.0,0.00024657,2]
[331944287,1720883228664,-310.05746639,0.00024657,2]
[331944288,1720883228684,-28.47521967,0.00024657,2]
[331944289,1720883234143,-197.44371632,0.00019165,2]
[331944290,1720883234166,-827.19928191,0.00020995,2]
[331944291,1720883234189,-471.52478033,0.00024657,2]
[331944292,1720883234211,-500.0,0.00024657,2]
[331944293,1720883234233,-500.0,0.00024657,2]
[331944294,1720883234254,-500.0,0.00024657,2]
[331944295,1720883234275,-500.0,0.00024657,2]
[331944296,1720883234296,-500.0,0.00024657,2]
[331944297,1720883234316,-500.0,0.00024657,2]
[331944298,1720883234341,-500.0,0.00024657,2]
[331944299,1720883234362,-500.0,0.00024657,2]
[331944300,1720883234385,-500.0,0.00024657,2]
[331944301,1720883234408,-500.0,0.00024657,2]
[331944302,1720883234428,-500.0,0.00024657,2]
[331944303,1720883234449,-500.0,0.00024657,2]
[331944304,1720883234470,-500.0,0.00024657,2]
[331944305,1720883234505,-501.57932443,0.00024657,2]
[331944306,1720883234527,-500.0,0.00024657,2]
[331944307,1720883234548,-500.0,0.00024657,2]
[331944308,1720883234570,-505.17686854,0.00024657,2]
[331944309,1720883234595,-500.0,0.00024657,2]
[331944310,1720883234616,-500.0,0.00024657,2]
[331944311,1720883234637,-500.0,0.00024657,2]
[331944312,1720883234658,-500.0,0.00024657,2]
[331944313,1720883234679,-500.0,0.00024657,2]
[331944314,1720883234700,-500.0,0.00024657,2]
[331944315,1720883234723,-500.0,0.00024657,2]
[331944316,1720883234746,-500.0,0.00024657,2]
[331944317,1720883234767,-512.48032506,0.00024657,2]
[331944318,1720883234788,-500.0,0.00024657,2]
[331944319,1720883234809,-500.0,0.00024657,2]
[331944320,1720883234832,-500.0,0.00024657,2]
[331944321,1720883234854,-500.0,0.00024657,2]
[331944322,1720883234876,-500.0,0.00024657,2]
[331944323,1720883234897,-500.0,0.00024657,2]
[331944324,1720883234919,-500.0,0.00024657,2]
[331944325,1720883234941,-500.0,0.00024657,2]
[331944326,1720883234962,-428.7529884,0.00024657,2]
[331944327,1720883235119,-552.00324419,0.00024657,2]
[331944328,1720883235141,-500.0,0.00024657,2]
[331944329,1720883235161,-500.0,0.00024657,2]
[331944330,1720883235183,-500.0,0.00024657,2]
[331944331,1720883235204,-500.0,0.00024657,2]
[331944332,1720883235225,-500.0,0.00024657,2]
[331944333,1720883235247,-500.0,0.00024657,2]
[331944334,1720883235269,-500.0,0.00024657,2]
[331944335,1720883235291,-500.0,0.00024657,2]
[331944336,1720883235312,-500.0,0.00024657,2]
[331944337,1720883235336,-500.0,0.00024657,2]
[331944338,1720883235357,-521.05740123,0.00024657,2]
[331944339,1720883235381,-500.0,0.00024657,2]
[331944340,1720883235406,-500.0,0.00024657,2]
[331944341,1720883235428,-500.0,0.00024657,2]
[331944342,1720883235449,-538.41600805,0.00024657,2]
[331944343,1720883235469,-1500.0,0.00024657,2]
[331944344,1720883235492,-500.0,0.00024657,2]
[331944345,1720883235513,-531.76915667,0.00024657,2]
[331944346,1720883235533,-500.0,0.00024657,2]
[331944347,1720883235554,-500.0,0.00024657,2]
[331944348,1720883235575,-500.0,0.00024657,2]
[331944349,1720883235596,-500.0,0.00024657,2]
[331944350,1720883236400,-500.0,0.00024657,2]
[331944351,1720883236424,-500.0,0.00024657,2]
[331944352,1720883236449,-522.99160165,0.00024657,2]
[331944353,1720883236470,-500.0,0.00024657,2]
[331944354,1720883236491,-548.39295008,0.00024657,2]
[331944355,1720883236510,-500.0,0.00024657,2]
[331944356,1720883236531,-500.0,0.00024657,2]
[331944357,1720883236552,-500.0,0.00024657,2]
[331944358,1720883236573,-500.0,0.00024657,2]
[331944359,1720883236602,-500.0,0.00024657,2]
[331944360,1720883236624,-595.53,0.00024657,2]
[331944361,1720883236648,-158.44052637,0.00024657,2]
[331944362,1720883236670,-500.0,0.00024657,2]
[331944363,1720883236692,-500.0,0.00024657,2]
[331944364,1720883236715,-500.0,0.00024657,2]
[331944365,1720883236736,-500.0,0.00024657,2]
[331944366,1720883236758,-500.0,0.00024657,2]
[331944367,1720883236779,-1000.0,0.00024657,5]